bitfinex-derivatives/quotes_BTCF0:USTF0_20260111
["timestamp","ask_amount","ask_price","bid_price","bid_amount"]
[1768157846871,0.0097512,90938.0,90922.0,0.011013]
[1768157847071,0.0097512,90938.0,90920.0,0.07012497]
[1768157847267,0.011012,90933.0,90920.0,0.07012497]
[1768157847467,0.011013,90927.0,90918.0,0.00241978]
[1768157847666,0.011013,90927.0,90914.0,0.0218762]
[1768157847861,0.15110528,90930.0,90916.0,0.011014]
[1768157847862,0.011012,90930.0,90916.0,0.011014]
[1768157848476,0.011012,90930.0,90918.0,0.011014]
[1768157849076,0.00966906,90934.0,90914.0,0.0108622]
[1768157849277,0.00966906,90934.0,90916.0,0.011014]
[1768157849478,0.00966906,90934.0,90912.0,0.16368497]
[1768157849479,0.011012,90931.0,90918.0,0.011014]
[1768157850575,0.011012,90931.0,90916.0,0.011014]
[1768157850780,0.011012,90930.0,90916.0,0.011014]
[1768157850976,0.00966906,90934.0,90918.0,0.011014]
[1768157852182,0.011012,90931.0,90915.0,0.011014]
[1768157852482,0.011013,90929.0,90915.0,0.011014]
[1768157853282,0.011012,90930.0,90917.0,0.011014]
[1768157854182,0.00966906,90934.0,90914.0,0.02191646]
[1768157854482,0.011012,90932.0,90916.0,0.011014]
[1768157854882,0.011012,90933.0,90914.0,0.01090246]
[1768157855084,0.011012,90931.0,90917.0,0.011014]
[1768157855380,0.011012,90931.0,90913.0,0.07012497]
[1768157855381,0.011012,90930.0,90914.0,0.0112292]
[1768157855583,0.011012,90930.0,90913.0,0.07012497]
[1768157856309,0.011012,90931.0,90917.0,0.011014]
[1768157859204,0.011012,90931.0,90913.0,0.07012497]
[1768157859205,0.011013,90927.0,90913.0,0.07012497]
[1768157859399,0.0094921,90931.0,90913.0,0.07012497]
[1768157859594,0.011013,90928.0,90913.0,0.08113897]
[1768157860107,0.011013,90928.0,90913.0,0.09228759]
[1768157860307,0.0094921,90931.0,90913.0,0.08127359]
[1768157860600,0.011013,90922.0,90912.0,0.09356]
[1768157861300,0.0094921,90928.0,90912.0,0.09356]
[1768157861902,0.0094921,90928.0,90912.0,0.10465679]
[1768157862397,0.011013,90922.0,90912.0,0.10465679]
[1768157862599,0.011013,90922.0,90912.0,0.01109679]
[1768157862893,0.011013,90922.0,90913.0,0.0936]
[1768157863506,0.011013,90922.0,90910.0,0.15110528]
[1768157863704,0.08563274,90922.0,90910.0,0.01128998]
[1768157863906,0.011014,90918.0,90902.0,0.104616]
[1768157864499,0.011014,90918.0,90904.0,0.011015]
[1768157864907,0.011014,90918.0,90905.0,0.01628696]
[1768157866307,0.011014,90918.0,90905.0,0.00550028]
[1768157866707,0.00957227,90921.0,90905.0,0.00550028]
[1768157866908,0.011014,90916.0,90905.0,0.00550028]
[1768157867206,0.0094921,90919.0,90905.0,0.00550028]
[1768157867610,0.0094921,90915.0,90905.0,0.00550028]
[1768157867905,0.0094921,90914.0,90905.0,0.00550028]
[1768157868305,0.0094921,90914.0,90905.0,0.01651528]
[1768157870305,0.07614064,90915.0,90905.0,0.01651528]
[1768157872914,0.07614064,90915.0,90905.0,0.00550028]
[1768157874108,0.07614064,90913.0,90904.0,0.011015]
[1768157874310,0.0094921,90911.0,90896.0,0.0936]
[1768157874501,0.011015,90910.0,90897.0,0.011016]
[1768157874902,0.0094921,90911.0,90896.0,0.0936]
[1768157875906,0.0094921,90911.0,90897.0,0.011016]
[1768157876106,0.07614064,90913.0,90898.0,0.011016]
[1768157876312,0.011015,90910.0,90896.0,0.10451269]
[1768157877513,0.011015,90910.0,90898.0,0.011016]
[1768157879518,0.011015,90912.0,90898.0,0.011016]
[1768157880117,0.011015,90911.0,90898.0,0.011016]
[1768157881213,0.07614064,90913.0,90896.0,0.10451269]
[1768157881419,0.0094921,90915.0,90896.0,0.10451269]
[1768157882521,0.011014,90914.0,90896.0,0.10451269]
[1768157882723,0.0094921,90915.0,90896.0,0.10451269]
[1768157882724,0.0094921,90915.0,90899.0,0.011016]
[1768157884522,0.011014,90913.0,90899.0,0.011016]
[1768157884723,0.011014,90913.0,90896.0,0.10451269]
[1768157885424,0.011015,90910.0,90896.0,0.10451269]
[1768157885622,0.011015,90910.0,90897.0,0.011016]
[1768157886121,0.011015,90912.0,90897.0,0.011016]
[1768157886423,0.0094921,90915.0,90897.0,0.011016]
[1768157886625,0.0094921,90915.0,90898.0,0.011016]
[1768157887527,0.011015,90912.0,90898.0,0.011016]
[1768157888621,0.011015,90912.0,90899.0,0.011016]
[1768157891525,0.011014,90914.0,90900.0,0.011016]
[1768157892131,0.0094921,90915.0,90898.0,0.011016]
[1768157892330,0.011015,90913.0,90899.0,0.011016]
[1768157893133,0.011015,90913.0,90900.0,0.011016]
[1768157893334,0.0094921,90915.0,90897.0,0.011016]
[1768157893535,0.011015,90912.0,90898.0,0.011016]
[1768157894034,0.0094921,90915.0,90896.0,0.10451269]
[1768157895524,0.0094921,90915.0,90902.0,0.011016]
[1768157895825,0.0205061,90915.0,90902.0,0.011016]
[1768157896630,0.011014,90915.0,90902.0,0.011016]
[1768157897143,0.08586264,90918.0,90902.0,0.011016]
[1768157897436,0.011014,90914.0,90902.0,0.011016]
[1768157898736,0.011014,90914.0,90896.0,0.18608168]
[1768157899339,0.011014,90916.0,90903.0,0.011016]
[1768157899639,0.011014,90919.0,90903.0,0.08156899]
[1768157899833,8.017e-05,90921.0,90908.0,0.011015]
[1768157900039,0.104612,90930.0,90911.0,0.08156899]
[1768157900235,0.011013,90929.0,90911.0,0.08156899]
[1768157901343,6.096e-05,90928.0,90911.0,0.08156899]
[1768157901534,6.096e-05,90928.0,90915.0,0.011014]
[1768157902143,6.096e-05,90928.0,90914.0,0.011014]
[1768157902734,0.011013,90926.0,90914.0,0.005014]
[1768157905143,6.096e-05,90928.0,90911.0,0.08156899]
[1768157906545,0.011013,90925.0,90913.0,0.011014]
[1768157909944,0.011013,90925.0,90911.0,0.08156899]
[1768157910442,0.011013,90925.0,90913.0,0.011014]
[1768157912153,0.011013,90925.0,90911.0,0.09258399]
[1768157913150,0.011013,90925.0,90912.0,0.011014]
[1768157914047,6.096e-05,90928.0,90912.0,0.011014]
[1768157915647,0.011013,90926.0,90912.0,0.011014]
[1768157916450,0.011013,90926.0,90911.0,0.08156899]
[1768157916451,0.011013,90926.0,90914.0,0.011014]
[1768157916653,0.01107396,90928.0,90914.0,0.011014]
[1768157916950,0.01107396,90928.0,90911.0,0.08156899]
[1768157917353,0.01107396,90928.0,90914.0,0.011014]
[1768157917649,0.01107396,90928.0,90915.0,0.011014]
[1768157920055,0.011013,90925.0,90912.0,0.011015]
[1768157920355,0.011013,90925.0,90913.0,0.011014]
[1768157920655,0.01107396,90928.0,90911.0,0.08156899]
[1768157921047,0.011013,90926.0,90914.0,0.011014]
[1768157921354,0.011013,90926.0,90905.0,0.01651528]
[1768157921355,0.011013,90923.0,90910.0,0.011015]
[1768157921555,0.00952906,90926.0,90908.0,0.011015]
[1768157922159,0.011013,90925.0,90911.0,0.011015]
[1768157922352,0.00952906,90926.0,90905.0,0.08646655]
[1768157922655,0.011013,90923.0,90909.0,0.011015]
[1768157923241,0.011013,90922.0,90908.0,0.011015]
[1768157924251,0.00952906,90926.0,90905.0,0.08646655]
[1768157924457,0.00952906,90926.0,90908.0,0.011015]
[1768157925356,0.011013,90921.0,90908.0,0.011015]
[1768157925555,0.011013,90923.0,90905.0,0.08646655]
[1768157926552,0.011013,90922.0,90908.0,0.011015]
[1768157927558,0.011013,90922.0,90909.0,0.011015]
[1768157928948,0.011013,90922.0,90905.0,0.08646655]
[1768157930556,0.011013,90922.0,90909.0,0.011015]
[1768157930954,0.011013,90924.0,90910.0,0.011015]
[1768157931455,0.011013,90924.0,90910.0,0.16227182]
[1768157931658,0.011013,90922.0,90910.0,0.16227182]
[1768157932257,0.00952906,90926.0,90910.0,0.15125682]
[1768157932461,0.011013,90922.0,90910.0,0.15125682]
[1768157933554,6.096e-05,90928.0,90920.0,0.011013]
[1768157936064,6.096e-05,90928.0,90916.0,0.08096627]
[1768157936466,0.011012,90935.0,90922.0,0.011013]
[1768157940259,0.0936,90937.0,90918.0,0.29170499]
[1768157940463,0.0936,90937.0,90919.0,0.011014]
[1768157940767,0.0936,90937.0,90918.0,0.30271899]
[1768157940968,0.011012,90933.0,90919.0,0.011014]
[1768157941274,0.0936,90937.0,90919.0,0.08096627]
[1768157941275,0.011012,90935.0,90919.0,0.08096627]
[1768157941471,0.011012,90933.0,90921.0,0.011013]
[1768157942367,0.00952906,90943.0,90923.0,0.23222309]
[1768157942570,0.011011,90942.0,90929.0,0.011012]
[1768157942759,0.0936,90944.0,90929.0,0.0594819]
[1768157942963,0.011011,90943.0,90930.0,0.0594819]
[1768157943264,0.011011,90943.0,90930.0,0.011012]
[1768157943767,0.0936,90944.0,90933.0,0.011012]
[1768157943965,0.0936,90944.0,90930.0,0.011012]
[1768157944164,0.0936,90944.0,90929.0,0.09262165]
[1768157944664,0.011011,90942.0,90929.0,0.09262165]
[1768157944864,0.011011,90942.0,90930.0,0.15125682]
[1768157945066,0.0936,90944.0,90930.0,0.15125682]
[1768157945260,0.104611,90944.0,90931.0,0.011012]
[1768157945573,0.0936,90944.0,90933.0,0.011012]
[1768157945870,0.0936,90944.0,90930.0,0.16226882]
[1768157946972,0.0936,90944.0,90932.0,0.011012]
[1768157948074,0.0936,90944.0,90930.0,0.15125682]
[1768157948075,0.104611,90944.0,90930.0,0.15125682]
[1768157948672,0.0936,90944.0,90930.0,0.15125682]
[1768157948878,0.0936,90944.0,90930.0,0.16226882]
[1768157950276,0.0936,90944.0,90930.0,0.15326882]
[1768157951178,0.0936,90944.0,90930.0,0.14225682]
[1768157951369,0.104611,90944.0,90930.0,0.14225682]
[1768157952978,0.0936,90944.0,90932.0,0.011012]
[1768157955479,0.0936,90944.0,90930.0,0.15326882]
[1768157955679,0.0936,90944.0,90931.0,0.011012]
[1768157955979,0.104611,90944.0,90931.0,0.011012]
[1768157959492,0.0936,90944.0,90931.0,0.011012]
[1768157960093,0.0936,90944.0,90933.0,0.011012]
[1768157960495,0.0936,90944.0,90934.0,0.011012]
[1768157961894,0.00926178,90943.0,90934.0,0.011012]
[1768157962399,0.00926178,90943.0,90930.0,0.13126882]
[1768157962987,0.00926178,90943.0,90924.0,0.18407018]
[1768157963187,0.00926178,90943.0,90930.0,0.15125682]
[1768157964396,0.00926178,90943.0,90932.0,0.011012]
[1768157965097,0.00926178,90943.0,90933.0,0.011012]
[1768157966093,0.00926178,90943.0,90931.0,0.011012]
[1768157966497,0.00926178,90943.0,90932.0,0.011012]
[1768157966999,0.00926178,90943.0,90930.0,0.16226882]
[1768157968098,0.00926178,90943.0,90931.0,0.011012]
[1768157970996,0.00926178,90943.0,90932.0,0.011012]
[1768157973302,0.00926178,90943.0,90933.0,0.011012]
[1768157978810,0.00926178,90943.0,90937.0,0.011011]
[1768157979011,0.0916721,90945.0,90937.0,0.011011]
[1768157979511,0.0916721,90945.0,90930.0,0.14526882]
[1768157980104,0.00549786,90945.0,90934.0,0.011012]
[1768157980308,0.011011,90944.0,90931.0,0.011012]
[1768157981805,0.01460263,90945.0,90931.0,0.011012]
[1768157982005,0.01460263,90945.0,90932.0,0.011012]
[1768157986212,0.02561363,90945.0,90930.0,0.011012]
[1768157986410,0.02561363,90945.0,90930.0,0.16226882]
[1768157987309,0.02561363,90945.0,90932.0,0.011012]
[1768157996424,0.01460263,90945.0,90926.0,0.0936]
[1768157997420,0.01460263,90945.0,90934.0,0.011012]
[1768157998120,0.01460263,90945.0,90926.0,0.0936]
[1768157998623,0.01460263,90945.0,90932.0,0.011012]
[1768158000311,0.01460263,90945.0,90934.0,0.011012]
[1768158000517,0.00910477,90944.0,90926.0,0.0936]
[1768158001427,0.02011577,90944.0,90930.0,0.011012]
[1768158002425,0.00910477,90944.0,90933.0,0.011012]
[1768158002722,8.6e-07,90945.0,90942.0,0.011011]
[1768158002930,0.00241898,90948.0,90942.0,0.011011]
[1768158003226,0.00241898,90948.0,90939.0,0.011011]
[1768158003526,0.00241898,90948.0,90941.0,0.011011]
[1768158004026,0.00241898,90948.0,90937.0,0.011012]
[1768158004529,0.00241898,90948.0,90933.0,0.08314039]
[1768158005128,0.01215405,90948.0,90933.0,0.011012]
[1768158005317,0.01215405,90948.0,90935.0,0.011012]
[1768158006132,0.01215405,90948.0,90937.0,0.011011]
[1768158006718,0.01215405,90948.0,90928.0,0.07989861]
[1768158007617,0.01215405,90948.0,90934.0,0.011012]
[1768158007817,0.01215405,90948.0,90936.0,0.011012]
[1768158008523,0.00973507,90945.0,90926.0,0.0936]
[1768158008723,0.00973507,90944.0,90935.0,0.011012]
[1768158011531,0.00923671,90947.0,90927.0,0.011013]
[1768158012535,0.00923671,90947.0,90936.0,0.011012]
[1768158013237,0.00923671,90947.0,90938.0,0.011011]
[1768158013624,0.00923671,90947.0,90927.0,0.009024]
[1768158014235,0.00923671,90947.0,90938.0,0.011011]
[1768158017434,0.00923671,90947.0,90939.0,0.011011]
[1768158018835,0.00923671,90947.0,90936.0,0.011012]
[1768158019138,0.00923671,90947.0,90938.0,0.011011]
[1768158020841,0.00923671,90947.0,90927.0,0.007024]
[1768158021137,0.00923671,90947.0,90936.0,0.011012]
[1768158021541,0.00923671,90947.0,90937.0,0.011011]
[1768158022847,0.02024671,90947.0,90928.0,0.011013]
[1768158023145,0.02024671,90947.0,90927.0,0.08720584]
[1768158023441,0.02024671,90947.0,90934.0,0.011012]
[1768158023636,0.02024671,90947.0,90936.0,0.011012]
[1768158024040,0.00923671,90947.0,90936.0,0.011012]
[1768158028648,0.00923671,90947.0,90937.0,0.011011]
[1768158029545,0.00923671,90947.0,90938.0,0.011011]
[1768158032849,0.00923671,90947.0,90928.0,0.0793092]
[1768158033551,0.00923671,90947.0,90938.0,0.011011]
[1768158035650,0.00923671,90947.0,90928.0,0.0793092]
[1768158035842,0.00923671,90947.0,90928.0,0.16253887]
[1768158036152,0.0830823,90948.0,90928.0,0.16253887]
[1768158036645,0.00959096,90945.0,90928.0,0.0793092]
[1768158036852,0.00959096,90945.0,90928.0,0.1729092]
[1768158038450,0.00959096,90945.0,90936.0,0.011012]
[1768158039550,0.00959096,90945.0,90928.0,0.159717]
[1768158040153,0.00959096,90945.0,90937.0,0.011011]
[1768158041555,0.08195698,90946.0,90937.0,0.011011]
[1768158041747,0.09296798,90946.0,90934.0,0.011012]
[1768158041955,0.09296798,90946.0,90935.0,0.011012]
[1768158042156,0.08195698,90946.0,90935.0,0.011012]
[1768158042753,0.011011,90945.0,90928.0,0.159717]
[1768158043153,0.09154794,90946.0,90934.0,0.011012]
[1768158043358,0.09154794,90946.0,90928.0,0.159717]
[1768158044461,0.09154794,90946.0,90936.0,0.011012]
[1768158044956,0.09154794,90946.0,90928.0,0.159717]
[1768158045160,0.011011,90945.0,90934.0,0.011012]
[1768158045660,0.09154794,90946.0,90937.0,0.011011]
[1768158049966,0.09154794,90946.0,90938.0,0.011011]
[1768158050164,0.09154794,90946.0,90940.0,0.011011]
[1768158050354,0.00241898,90948.0,90940.0,0.011011]
[1768158052057,0.00241898,90948.0,90930.0,0.009023]
[1768158052675,0.00241898,90948.0,90940.0,0.011011]
[1768158053064,0.00241898,90948.0,90938.0,0.011011]
[1768158053249,0.00241898,90948.0,90936.0,0.011012]
[1768158054766,0.00241898,90948.0,90937.0,0.011011]
[1768158055167,0.00241898,90948.0,90938.0,0.011011]
[1768158055867,0.00241898,90948.0,90930.0,0.1511784]
[1768158056369,0.00241898,90948.0,90931.0,0.011012]
[1768158056868,0.00241898,90948.0,90930.0,0.1511784]
[1768158056869,0.00241898,90948.0,90937.0,0.011011]
[1768158057269,0.01101,90947.0,90930.0,0.1511784]
[1768158057475,0.00241898,90948.0,90930.0,0.1511784]
[1768158057772,0.00241898,90948.0,90937.0,0.011011]
[1768158058479,0.00241898,90948.0,90938.0,0.011011]
[1768158059184,0.00241898,90948.0,90930.0,0.1421894]
[1768158059382,0.00241898,90948.0,90938.0,0.011011]
[1768158060686,0.00241898,90948.0,90936.0,0.011012]
[1768158060887,0.00241898,90948.0,90937.0,0.011011]
[1768158061078,0.00241898,90948.0,90938.0,0.011011]
[1768158063287,0.00241898,90948.0,90939.0,0.011011]
[1768158063889,0.00241898,90948.0,90930.0,0.22631637]
[1768158064088,0.00241898,90948.0,90937.0,0.011011]
[1768158064478,0.00241898,90948.0,90938.0,0.011011]
[1768158066292,0.00241898,90948.0,90931.0,0.08412697]
[1768158066588,0.00241898,90948.0,90940.0,0.011011]
[1768158067183,0.00241898,90948.0,90938.0,0.011011]
[1768158067485,0.01342898,90948.0,90937.0,0.011011]
[1768158068189,0.00241898,90948.0,90938.0,0.011011]
[1768158069185,0.00241898,90948.0,90939.0,0.011011]
[1768158073296,0.00241898,90948.0,90931.0,0.07413797]
[1768158075104,0.00241898,90948.0,90939.0,0.011011]
[1768158076908,0.00241898,90948.0,90934.0,0.07955184]
[1768158078106,0.01101,90947.0,90934.0,0.09056384]
[1768158078505,0.00241898,90948.0,90937.0,0.011011]
[1768158079409,0.00241898,90948.0,90934.0,0.07955184]
[1768158079410,0.00241898,90948.0,90934.0,0.09056384]
[1768158079699,0.00241898,90948.0,90934.0,0.07955184]
[1768158079906,0.01101,90946.0,90934.0,0.07955184]
[1768158085514,0.01342898,90948.0,90934.0,0.07955184]
[1768158087414,0.01342898,90948.0,90934.0,0.09056384]
[1768158088215,0.00241898,90948.0,90936.0,0.011012]
[1768158088714,0.01342898,90948.0,90934.0,0.09056384]
[1768158089018,0.00241898,90948.0,90934.0,0.07955184]
[1768158089614,0.00241898,90948.0,90940.0,0.011011]
[1768158090517,0.00241898,90948.0,90934.0,0.07856284]
[1768158090718,0.00241898,90948.0,90940.0,0.011011]
[1768158098128,0.00241898,90948.0,90937.0,0.011011]
[1768158100129,0.00241898,90948.0,90934.0,0.07856284]
[1768158100329,0.00241898,90948.0,90937.0,0.011012]
[1768158100723,0.00241898,90948.0,90934.0,0.08957484]
[1768158100724,0.01342898,90948.0,90934.0,0.08957484]
[1768158101428,0.01342898,90948.0,90935.0,0.011012]
[1768158102029,0.01101,90946.0,90934.0,0.07856284]
[1768158102231,0.01342898,90948.0,90934.0,0.08957484]
[1768158102432,0.01342898,90948.0,90936.0,0.011012]
[1768158102728,0.00241898,90948.0,90936.0,0.011012]
[1768158104023,0.00241898,90948.0,90934.0,0.07856284]
[1768158104024,0.01101,90947.0,90934.0,0.07856284]
[1768158104325,0.01101,90947.0,90934.0,0.08957484]
[1768158105331,0.00241898,90948.0,90936.0,0.011012]
[1768158105726,0.00241898,90948.0,90937.0,0.011011]
[1768158106337,0.01101,90947.0,90934.0,0.08957484]
[1768158106523,0.00241898,90948.0,90936.0,0.011012]
[1768158106831,0.01101,90947.0,90934.0,0.07856284]
[1768158107033,0.01101,90947.0,90934.0,0.08957484]
[1768158107335,0.00241898,90948.0,90936.0,0.011012]
[1768158108036,0.00241898,90948.0,90934.0,0.07856284]
[1768158108334,0.00241898,90948.0,90938.0,0.011011]
[1768158109334,0.00241898,90948.0,90936.0,0.011012]
[1768158111134,0.01342898,90948.0,90936.0,0.011012]
[1768158113136,0.00241898,90948.0,90936.0,0.011012]
[1768158114033,0.01101,90947.0,90934.0,0.07856284]
[1768158114232,0.00241898,90948.0,90935.0,0.011012]
[1768158114438,0.01101,90947.0,90934.0,0.08957484]
[1768158115542,0.011011,90946.0,90934.0,0.07856284]
[1768158115736,0.01101,90947.0,90934.0,0.08957484]
[1768158116136,0.01101,90947.0,90935.0,0.011012]
[1768158116342,0.01342898,90948.0,90935.0,0.011012]
[1768158118443,0.01342898,90948.0,90936.0,0.011012]
[1768158120238,0.00241898,90948.0,90936.0,0.011012]
[1768158120737,0.01342898,90948.0,90936.0,0.011012]
[1768158121243,0.011011,90946.0,90934.0,0.08957484]
[1768158121444,0.01342898,90948.0,90934.0,0.08957484]
[1768158122240,0.01101,90946.0,90934.0,0.08957484]
[1768158123646,0.01342898,90948.0,90934.0,0.08957484]
[1768158123849,0.01342898,90948.0,90935.0,0.011012]
[1768158124051,0.01101,90947.0,90935.0,0.011012]
[1768158125848,0.01101,90947.0,90934.0,0.07856284]
[1768158126036,0.01101,90947.0,90934.0,0.08957484]
[1768158127253,0.011011,90946.0,90934.0,0.07856284]
[1768158127552,0.01342898,90948.0,90934.0,0.08957484]
[1768158129248,0.00241898,90948.0,90934.0,0.08957484]
[1768158129454,0.01101,90946.0,90934.0,0.07856284]
[1768158133463,0.01101,90946.0,90932.0,0.011012]
[1768158136061,0.01101,90946.0,90933.0,0.011012]
[1768158137761,0.00241898,90948.0,90935.0,0.011012]
[1768158141564,0.01101,90947.0,90935.0,0.011012]
[1768158146564,0.01101,90947.0,90929.0,0.07841266]
[1768158146565,0.01101,90947.0,90934.0,0.011012]
[1768158148661,0.00241898,90948.0,90935.0,0.011012]
[1768158148862,0.00241898,90948.0,90936.0,0.011012]
[1768158149764,0.00241898,90948.0,90937.0,0.011011]
[1768158150061,0.00241898,90948.0,90942.0,0.011011]
[1768158150263,0.0936,90952.0,90942.0,0.011011]
[1768158150562,0.02387642,90951.0,90942.0,0.011011]
[1768158150753,0.0936,90952.0,90942.0,0.011011]
[1768158150954,0.02387641,90951.0,90942.0,0.011011]
[1768158151154,0.0936,90952.0,90942.0,0.011011]
[1768158151356,0.02387637,90951.0,90942.0,0.011011]
[1768158151555,0.0936,90952.0,90942.0,0.011011]
[1768158151855,0.02387637,90951.0,90937.0,0.07841266]
[1768158152154,0.0936,90952.0,90940.0,0.011011]
[1768158152355,0.02387624,90951.0,90940.0,0.011011]
[1768158152554,0.0936,90952.0,90940.0,0.011011]
[1768158152754,0.02387624,90951.0,90940.0,0.011011]
[1768158152964,0.0936,90952.0,90940.0,0.011011]
[1768158153163,0.02387623,90951.0,90937.0,0.07841266]
[1768158153363,0.0936,90952.0,90937.0,0.07841266]
[1768158153663,0.02387615,90951.0,90937.0,0.07841266]
[1768158153863,0.0936,90952.0,90940.0,0.011011]
[1768158154065,0.02387616,90951.0,90940.0,0.011011]
[1768158154263,0.0936,90952.0,90940.0,0.011011]
[1768158154563,0.02387607,90951.0,90940.0,0.011011]
[1768158154752,0.0936,90952.0,90940.0,0.011011]
[1768158154957,0.02387607,90951.0,90940.0,0.011011]
[1768158155156,0.0936,90952.0,90940.0,0.011011]
[1768158155365,0.02387595,90951.0,90940.0,0.011011]
[1768158155566,0.0936,90952.0,90940.0,0.011011]
[1768158155767,0.02387595,90951.0,90938.0,0.011011]
[1768158155973,0.01101,90949.0,90937.0,0.07841266]
[1768158156169,0.01101,90948.0,90936.0,0.011012]
[1768158157168,0.01101,90950.0,90937.0,0.011011]
[1768158158371,0.10329995,90952.0,90929.0,0.07387455]
[1768158158571,0.01101,90949.0,90936.0,0.011012]
[1768158159976,0.10329995,90952.0,90933.0,0.011012]
[1768158160161,0.10329995,90952.0,90929.0,0.07387455]
[1768158160362,0.01101,90949.0,90936.0,0.011012]
[1768158160668,0.00969995,90951.0,90929.0,0.07387455]
[1768158161968,0.01101,90946.0,90929.0,0.07387455]
[1768158162275,0.01101,90948.0,90935.0,0.011012]
[1768158164382,0.01101,90948.0,90936.0,0.011012]
[1768158165274,0.01101,90948.0,90928.0,0.17073]
[1768158165275,0.00969995,90945.0,90933.0,0.011012]
[1768158165674,0.07152519,90945.0,90933.0,0.011012]
[1768158166080,0.00969995,90948.0,90933.0,0.011012]
[1768158167371,0.011011,90945.0,90933.0,0.011012]
[1768158173703,0.01101,90947.0,90934.0,0.011012]
[1768158174599,0.01101,90947.0,90935.0,0.011012]
[1768158175201,0.01101,90947.0,90936.0,0.011012]
[1768158175503,0.00969995,90948.0,90938.0,0.011011]
[1768158175703,0.01101,90949.0,90938.0,0.011011]
[1768158175908,0.01101,90949.0,90928.0,0.24460455]
[1768158177203,0.01101,90947.0,90935.0,0.011012]
[1768158181108,0.09223514,90950.0,90935.0,0.011012]
[1768158181310,0.01101,90949.0,90935.0,0.011012]
[1768158181711,0.01101,90949.0,90930.0,0.1511828]
[1768158181910,0.01101,90949.0,90937.0,0.011011]
[1768158184610,0.01101,90947.0,90934.0,0.011012]
[1768158184808,0.01101,90949.0,90935.0,0.011012]
[1768158185613,0.01101,90948.0,90935.0,0.011012]
[1768158186612,0.01101,90947.0,90934.0,0.011012]
[1768158188909,0.01101,90949.0,90935.0,0.011012]
[1768158189807,0.00987379,90948.0,90935.0,0.011012]
[1768158190004,0.02088379,90948.0,90935.0,0.011012]
[1768158190309,0.01101,90948.0,90935.0,0.011012]
[1768158195506,0.01101,90947.0,90935.0,0.011012]
[1768158200114,0.08189643,90949.0,90936.0,0.011012]
[1768158200513,0.01101,90948.0,90936.0,0.011012]
[1768158202615,0.01101,90946.0,90935.0,0.011012]
[1768158205318,0.01101,90948.0,90935.0,0.011012]
[1768158205507,0.01101,90946.0,90930.0,0.1511828]
[1768158205708,0.01101,90948.0,90934.0,0.011012]
[1768158206212,0.01101,90948.0,90935.0,0.011012]
[1768158207218,0.011011,90946.0,90935.0,0.011012]
[1768158207518,0.07088643,90949.0,90933.0,0.011012]
[1768158207719,0.07088643,90949.0,90934.0,0.011012]
[1768158208420,0.01101,90946.0,90934.0,0.011012]
[1768158208621,0.07088643,90949.0,90934.0,0.011012]
[1768158209022,0.011011,90945.0,90932.0,0.011012]
[1768158211017,0.08189643,90949.0,90935.0,0.011012]
[1768158211221,0.01101,90948.0,90930.0,0.1511828]
[1768158211526,0.01101,90948.0,90936.0,0.011012]
[1768158212322,0.01101,90947.0,90936.0,0.011012]
[1768158212526,0.07088643,90949.0,90930.0,0.1511828]
[1768158212826,0.01101,90947.0,90934.0,0.011012]
[1768158213726,0.01101,90947.0,90935.0,0.011012]
[1768158214529,0.09177022,90949.0,90936.0,0.011012]
[1768158215322,0.09177022,90949.0,90930.0,0.1511828]
[1768158215530,0.09177022,90949.0,90936.0,0.011012]
[1768158215729,0.09177022,90949.0,90937.0,0.011011]
[1768158217231,0.08076022,90949.0,90939.0,0.011011]
[1768158220736,0.01101,90948.0,90929.0,0.066117]
[1768158221036,0.01101,90948.0,90930.0,0.1511828]
[1768158221230,0.08076022,90949.0,90937.0,0.011011]
[1768158223337,0.01101,90948.0,90936.0,0.011012]
[1768158225442,0.01101,90947.0,90936.0,0.011012]
[1768158226238,0.01101,90947.0,90934.0,0.011012]
[1768158226939,0.01101,90947.0,90930.0,0.1511828]
[1768158227252,0.01101,90947.0,90935.0,0.011012]
[1768158231155,0.01101,90947.0,90936.0,0.011012]
[1768158238758,0.01101,90947.0,90930.0,0.1511828]
[1768158239259,0.01101,90947.0,90935.0,0.011012]
[1768158239456,0.01101,90947.0,90936.0,0.011012]
[1768158240263,0.01101,90947.0,90928.0,0.16747455]
[1768158240459,0.011011,90946.0,90933.0,0.011012]
[1768158241366,0.011011,90946.0,90934.0,0.011012]
[1768158241551,0.08644951,90948.0,90935.0,0.011012]
[1768158242666,0.01101,90947.0,90935.0,0.011012]
[1768158243767,0.02062895,90947.0,90935.0,0.011012]
[1768158245366,0.02062895,90947.0,90936.0,0.011012]
[1768158245666,0.00961895,90947.0,90936.0,0.011012]
[1768158257877,0.02062895,90947.0,90933.0,0.011012]
[1768158259378,0.02062895,90947.0,90929.0,0.066117]
[1768158259379,0.02062895,90947.0,90935.0,0.011012]
[1768158259878,0.02062895,90947.0,90932.0,0.011012]
[1768158260077,0.02062895,90947.0,90933.0,0.011012]
[1768158261770,0.01101,90947.0,90934.0,0.011012]
[1768158262981,0.01101,90947.0,90935.0,0.011012]
[1768158263781,0.01101,90947.0,90933.0,0.011012]
[1768158263982,0.01101,90947.0,90934.0,0.011012]
[1768158266379,0.06582056,90948.0,90935.0,0.011012]
[1768158266583,0.01101,90947.0,90929.0,0.066117]
[1768158267386,0.01101,90947.0,90934.0,0.011012]
[1768158269179,0.01101,90947.0,90929.0,0.066117]
[1768158269384,0.011011,90946.0,90929.0,0.066117]
[1768158269985,0.011011,90946.0,90934.0,0.011012]
[1768158270188,0.00590536,90946.0,90934.0,0.011012]
[1768158270382,0.06326774,90948.0,90934.0,0.011012]
[1768158270582,0.0581621,90948.0,90934.0,0.011012]
[1768158270886,0.05050364,90948.0,90934.0,0.011012]
[1768158271086,0.045398,90948.0,90934.0,0.011012]
[1768158271286,0.04284518,90948.0,90934.0,0.011012]
[1768158271486,0.011011,90946.0,90934.0,0.011012]
[1768158275092,0.03771578,90948.0,90934.0,0.011012]
[1768158275281,0.03744298,90948.0,90934.0,0.011012]
[1768158275482,0.00587399,90946.0,90934.0,0.011012]
[1768158275790,0.00587399,90946.0,90929.0,0.066117]
[1768158276184,0.00587399,90946.0,90933.0,0.011012]
[1768158280192,0.00587399,90946.0,90934.0,0.011012]